[Event "Titled Tuesday Blitz March 22 Late 2022"]
[White "Hakobyan, Aram"]
[Black "Pinheiro, Iung Alicio de O."]
[WhiteFideId "13306677"]
[BlackFideId "2104350"]
[WhiteElo "2557"]
[BlackElo "2526"]
[Result "1-0"]
[Round "01"]
[TimeControl "180+1"]
[Date "2022.03.22"]
[WhiteClock "0:01:00"]
[BlackClock "0:00:04"]

1. d4 {[%clk 0:02:59]}  Nf6 {[%clk 0:02:59]} 2. Nf3 {[%clk 0:02:58]}  g6 {[%clk 0:02:59]} 3. Nc3 {[%clk 0:02:58]}  d5 {[%clk 0:02:57]} 4. Bf4 {[%clk 0:02:58]}  Bg7 {[%clk 0:02:56]} 5. Nb5 {[%clk 0:02:55]}  Na6 {[%clk 0:02:56]} 6. h3 {[%clk 0:02:55]}  O-O {[%clk 0:02:55]} 7. e3 {[%clk 0:02:55]}  c6 {[%clk 0:02:54]} 8. Nc3 {[%clk 0:02:56]}  c5 {[%clk 0:02:29]} 9. Bxa6 {[%clk 0:02:54]}  bxa6 {[%clk 0:02:29]} 10. dxc5 {[%clk 0:02:54]}  Qa5 {[%clk 0:02:28]} 11. Qd4 {[%clk 0:02:45]}  Ne4 {[%clk 0:01:01]} 12. Be5 {[%clk 0:02:43]}  Bxe5 {[%clk 0:00:36]} 13. Nxe5 {[%clk 0:02:42]}  Qxc5 {[%clk 0:00:35]} 14. Qxc5 {[%clk 0:02:39]}  Nxc5 {[%clk 0:00:36]} 15. Nxd5 {[%clk 0:02:39]}  Bb7 {[%clk 0:00:26]} 16. Nf4 {[%clk 0:02:22]}  Rac8 {[%clk 0:00:25]} 17. O-O-O {[%clk 0:02:11]}  f6 {[%clk 0:00:24]} 18. Nd7 {[%clk 0:02:11]}  Rfe8 {[%clk 0:00:15]} 19. Nxc5 {[%clk 0:02:09]}  Rxc5 {[%clk 0:00:16]} 20. Rd7 {[%clk 0:02:07]}  Be4 {[%clk 0:00:15]} 21. c3 {[%clk 0:02:04]}  e5 {[%clk 0:00:15]} 22. Nd3 {[%clk 0:01:46]}  Rcc8 {[%clk 0:00:15]} 23. f3 {[%clk 0:01:40]}  Bc6 {[%clk 0:00:13]} 24. Rd6 {[%clk 0:01:39]}  e4 {[%clk 0:00:12]} 25. fxe4 {[%clk 0:01:40]}  Bxe4 {[%clk 0:00:13]} 26. Nf4 {[%clk 0:01:39]}  Rc5 {[%clk 0:00:09]} 27. Rxf6 {[%clk 0:01:36]}  Bf5 {[%clk 0:00:08]} 28. Re1 {[%clk 0:01:34]}  a5 {[%clk 0:00:07]} 29. Rd6 {[%clk 0:01:26]}  Re7 {[%clk 0:00:07]} 30. Rd4 {[%clk 0:01:25]}  Be4 {[%clk 0:00:06]} 31. h4 {[%clk 0:01:22]}  Kg7 {[%clk 0:00:06]} 32. g3 {[%clk 0:01:21]}  h6 {[%clk 0:00:06]} 33. Red1 {[%clk 0:01:16]}  g5 {[%clk 0:00:06]} 34. hxg5 {[%clk 0:01:15]}  hxg5 {[%clk 0:00:07]} 35. Nh5+ {[%clk 0:01:14]}  Kg6 {[%clk 0:00:07]} 36. g4 {[%clk 0:01:15]}  Re6 {[%clk 0:00:05]} 37. Rd6 {[%clk 0:01:10]}  Re5 {[%clk 0:00:05]} 38. Nf4+ {[%clk 0:00:59]}  gxf4 {[%clk 0:00:04]} 39. exf4 {[%clk 0:01:00]} 1-0


[Site "https://www.chess.com"]

[Event "Titled Tuesday Blitz March 22 Late 2022"]
[White "Halkias, Stelios"]
[Black "Zhou, Qiyu"]
[WhiteFideId "4201809"]
[BlackFideId "505161"]
[WhiteElo "2453"]
[BlackElo "1925"]
[Result "1/2-1/2"]
[Round "01"]
[TimeControl "180+1"]
[Date "2022.03.22"]
[WhiteClock "0:00:26"]
[BlackClock "0:00:49"]

1. e4 {[%clk 0:02:59]}  e5 {[%clk 0:02:57]} 2. Nf3 {[%clk 0:02:58]}  Nc6 {[%clk 0:02:58]} 3. Bc4 {[%clk 0:02:58]}  Bc5 {[%clk 0:02:58]} 4. c3 {[%clk 0:02:58]}  Nf6 {[%clk 0:02:59]} 5. d3 {[%clk 0:02:58]}  a6 {[%clk 0:02:58]} 6. a4 {[%clk 0:02:57]}  Ba7 {[%clk 0:02:56]} 7. O-O {[%clk 0:02:57]}  O-O {[%clk 0:02:56]} 8. Re1 {[%clk 0:02:56]}  h6 {[%clk 0:02:52]} 9. h3 {[%clk 0:02:55]}  d6 {[%clk 0:02:52]} 10. Nbd2 {[%clk 0:02:55]}  Be6 {[%clk 0:02:50]} 11. b4 {[%clk 0:02:54]}  Qd7 {[%clk 0:02:46]} 12. Bxe6 {[%clk 0:02:44]}  Qxe6 {[%clk 0:02:43]} 13. Bb2 {[%clk 0:02:44]}  Nh5 {[%clk 0:02:38]} 14. Nf1 {[%clk 0:02:35]}  Nf4 {[%clk 0:02:35]} 15. Ng3 {[%clk 0:02:34]}  Ne7 {[%clk 0:02:31]} 16. d4 {[%clk 0:02:29]}  Neg6 {[%clk 0:02:27]} 17. Nf5 {[%clk 0:02:13]}  Rad8 {[%clk 0:02:17]} 18. d5 {[%clk 0:02:09]}  Qf6 {[%clk 0:02:13]} 19. c4 {[%clk 0:02:09]}  Ne7 {[%clk 0:02:06]} 20. Nxe7+ {[%clk 0:01:57]}  Qxe7 {[%clk 0:02:06]} 21. c5 {[%clk 0:01:56]}  f6 {[%clk 0:01:50]} 22. c6 {[%clk 0:01:40]}  bxc6 {[%clk 0:01:45]} 23. dxc6 {[%clk 0:01:41]}  d5 {[%clk 0:01:46]} 24. Qb3 {[%clk 0:01:41]}  Kh8 {[%clk 0:01:41]} 25. exd5 {[%clk 0:01:32]}  Rxd5 {[%clk 0:01:32]} 26. Rad1 {[%clk 0:01:33]}  Rfd8 {[%clk 0:01:32]} 27. Rxd5 {[%clk 0:01:30]}  Rxd5 {[%clk 0:01:31]} 28. Qc4 {[%clk 0:01:25]}  Qd6 {[%clk 0:01:22]} 29. Qxa6 {[%clk 0:01:14]}  Bxf2+ {[%clk 0:01:21]} 30. Kxf2 {[%clk 0:01:13]}  Nd3+ {[%clk 0:01:21]} 31. Kf1 {[%clk 0:01:07]}  Nxb2 {[%clk 0:01:19]} 32. Qc8+ {[%clk 0:01:06]}  Kh7 {[%clk 0:01:15]} 33. b5 {[%clk 0:00:56]}  Nd3 {[%clk 0:01:05]} 34. Re3 {[%clk 0:00:44]}  Nf4 {[%clk 0:00:50]} 35. Qf5+ {[%clk 0:00:41]}  Kg8 {[%clk 0:00:50]} 36. Qc8+ {[%clk 0:00:39]}  Kh7 {[%clk 0:00:49]} 37. Qf5+ {[%clk 0:00:27]}  Kg8 {[%clk 0:00:49]} 38. Qc8+ {[%clk 0:00:26]}  Kh7 {[%clk 0:00:49]} 1/2-1/2


[Site "https://www.chess.com"]

[Event "Titled Tuesday Blitz March 22 Late 2022"]
[White "Hambleton, Aman"]
[Black "Thomas, Anysia"]
[WhiteFideId "2606577"]
[BlackFideId "670472"]
[WhiteElo "2552"]
[BlackElo "2002"]
[Result "1-0"]
[Round "01"]
[TimeControl "180+1"]
[Date "2022.03.22"]
[WhiteClock "0:00:18"]
[BlackClock "0:00:05"]

1. d4 {[%clk 0:03:00]}  Nf6 {[%clk 0:02:57]} 2. c4 {[%clk 0:02:55]}  g6 {[%clk 0:02:48]} 3. Nc3 {[%clk 0:02:54]}  d5 {[%clk 0:02:47]} 4. cxd5 {[%clk 0:02:54]}  Nxd5 {[%clk 0:02:45]} 5. Bd2 {[%clk 0:02:54]}  Nb6 {[%clk 0:02:37]} 6. Nf3 {[%clk 0:02:54]}  Bg7 {[%clk 0:02:32]} 7. Qc1 {[%clk 0:02:54]}  Nc6 {[%clk 0:02:24]} 8. Bh6 {[%clk 0:02:51]}  O-O {[%clk 0:02:10]} 9. Bxg7 {[%clk 0:02:47]}  Kxg7 {[%clk 0:02:11]} 10. e3 {[%clk 0:02:46]}  Bg4 {[%clk 0:02:10]} 11. Be2 {[%clk 0:02:46]}  Re8 {[%clk 0:01:48]} 12. h3 {[%clk 0:02:39]}  Bxf3 {[%clk 0:01:43]} 13. Bxf3 {[%clk 0:02:40]}  e5 {[%clk 0:01:43]} 14. Bxc6 {[%clk 0:02:40]}  bxc6 {[%clk 0:01:41]} 15. dxe5 {[%clk 0:02:39]}  Qd3 {[%clk 0:01:39]} 16. Qd1 {[%clk 0:02:33]}  Qc4 {[%clk 0:01:25]} 17. Qe2 {[%clk 0:02:33]}  Rxe5 {[%clk 0:01:24]} 18. Qxc4 {[%clk 0:02:33]}  Nxc4 {[%clk 0:01:25]} 19. O-O-O {[%clk 0:02:33]}  Rb8 {[%clk 0:01:24]} 20. b3 {[%clk 0:02:33]}  Nd6 {[%clk 0:01:19]} 21. Rd2 {[%clk 0:02:26]}  a5 {[%clk 0:01:19]} 22. Na4 {[%clk 0:02:14]}  c5 {[%clk 0:01:13]} 23. Rc2 {[%clk 0:01:34]}  c4 {[%clk 0:01:05]} 24. bxc4 {[%clk 0:01:35]}  Re4 {[%clk 0:01:05]} 25. Nb2 {[%clk 0:01:18]}  a4 {[%clk 0:00:51]} 26. Nxa4 {[%clk 0:01:09]}  Nxc4 {[%clk 0:00:47]} 27. Nc5 {[%clk 0:01:06]}  Na3 {[%clk 0:00:16]} 28. Nxe4 {[%clk 0:01:05]}  Rb1+ {[%clk 0:00:16]} 29. Kd2 {[%clk 0:01:06]}  Rxh1 {[%clk 0:00:16]} 30. Rxc7 {[%clk 0:01:04]}  Rg1 {[%clk 0:00:13]} 31. g4 {[%clk 0:01:01]}  Ra1 {[%clk 0:00:12]} 32. Ng5 {[%clk 0:00:21]}  Rxa2+ {[%clk 0:00:12]} 33. Ke1 {[%clk 0:00:20]}  Nc2+ {[%clk 0:00:08]} 34. Kf1 {[%clk 0:00:20]}  Ra1+ {[%clk 0:00:08]} 35. Kg2 {[%clk 0:00:20]}  Ne1+ {[%clk 0:00:08]} 36. Kg3 {[%clk 0:00:20]}  Kf6 {[%clk 0:00:06]} 37. f4 {[%clk 0:00:18]}  h6 {[%clk 0:00:05]} 38. Rxf7# {[%clk 0:00:18]} 1-0


[Site "https://www.chess.com"]

[Event "Titled Tuesday Blitz March 22 Late 2022"]
[White "Hamitevici, Vladimir"]
[Black "Lauridsen, Jesper Morch"]
[WhiteFideId "13902393"]
[BlackFideId "1401890"]
[WhiteElo "2359"]
[BlackElo "2277"]
[Result "1-0"]
[Round "01"]
[TimeControl "180+1"]
[Date "2022.03.22"]
[WhiteClock "0:00:02"]
[BlackClock "0:00:01"]

1. a3 {[%clk 0:02:52]}  e5 {[%clk 0:02:58]} 2. c4 {[%clk 0:02:52]}  g6 {[%clk 0:02:55]} 3. d4 {[%clk 0:02:50]}  exd4 {[%clk 0:02:53]} 4. Qxd4 {[%clk 0:02:51]}  Nf6 {[%clk 0:02:53]} 5. Bg5 {[%clk 0:02:45]}  Bg7 {[%clk 0:02:53]} 6. Qe5+ {[%clk 0:02:41]}  Kf8 {[%clk 0:02:50]} 7. Nc3 {[%clk 0:02:32]}  Nc6 {[%clk 0:02:49]} 8. Qe3 {[%clk 0:02:23]}  h6 {[%clk 0:02:39]} 9. Bh4 {[%clk 0:02:23]}  g5 {[%clk 0:02:39]} 10. Bg3 {[%clk 0:02:23]}  Ng4 {[%clk 0:02:37]} 11. Qd2 {[%clk 0:02:21]}  d6 {[%clk 0:02:31]} 12. h4 {[%clk 0:02:13]}  Bf5 {[%clk 0:02:26]} 13. e4 {[%clk 0:02:10]}  Bg6 {[%clk 0:02:16]} 14. Nf3 {[%clk 0:02:02]}  Qe7 {[%clk 0:01:49]} 15. Be2 {[%clk 0:01:41]}  Bxe4 {[%clk 0:01:38]} 16. Nxe4 {[%clk 0:01:42]}  Qxe4 {[%clk 0:01:37]} 17. hxg5 {[%clk 0:01:32]}  Re8 {[%clk 0:01:31]} 18. Kf1 {[%clk 0:01:12]}  Nce5 {[%clk 0:01:07]} 19. Nxe5 {[%clk 0:01:00]}  Bxe5 {[%clk 0:01:02]} 20. Bxe5 {[%clk 0:00:52]}  Rxe5 {[%clk 0:00:56]} 21. gxh6 {[%clk 0:00:45]}  Rf5 {[%clk 0:00:31]} 22. Bxg4 {[%clk 0:00:39]}  Qxg4 {[%clk 0:00:26]} 23. Qc3 {[%clk 0:00:27]}  Rg8 {[%clk 0:00:23]} 24. g3 {[%clk 0:00:14]}  Rf3 {[%clk 0:00:20]} 25. h7 {[%clk 0:00:08]}  Rxc3 {[%clk 0:00:16]} 26. hxg8=Q+ {[%clk 0:00:08]}  Kxg8 {[%clk 0:00:15]} 27. bxc3 {[%clk 0:00:09]}  Qxc4+ {[%clk 0:00:14]} 28. Kg1 {[%clk 0:00:08]}  Qxc3 {[%clk 0:00:14]} 29. Rb1 {[%clk 0:00:09]}  Qxa3 {[%clk 0:00:11]} 30. Rxb7 {[%clk 0:00:05]}  Qc1+ {[%clk 0:00:10]} 31. Kh2 {[%clk 0:00:05]}  Qh6+ {[%clk 0:00:09]} 32. Kg1 {[%clk 0:00:05]}  Qc1+ {[%clk 0:00:09]} 33. Kh2 {[%clk 0:00:05]}  Qc5 {[%clk 0:00:08]} 34. Rb8+ {[%clk 0:00:03]}  Kg7 {[%clk 0:00:08]} 35. Kg2 {[%clk 0:00:03]}  Qd5+ {[%clk 0:00:07]} 36. Kg1 {[%clk 0:00:04]}  a5 {[%clk 0:00:07]} 37. Rhh8 {[%clk 0:00:03]}  Kf6 {[%clk 0:00:05]} 38. Ra8 {[%clk 0:00:01]}  a4 {[%clk 0:00:04]} 39. Rhb8 {[%clk 0:00:02]}  Qd1+ {[%clk 0:00:02]} 40. Kg2 {[%clk 0:00:02]}  Qd5+ {[%clk 0:00:02]} 41. Kh2 {[%clk 0:00:02]}  Qh5+ {[%clk 0:00:02]} 42. Kg1 {[%clk 0:00:02]}  Qd5 {[%clk 0:00:02]} 43. Ra7 {[%clk 0:00:01]}  Qd1+ {[%clk 0:00:01]} 44. Kg2 {[%clk 0:00:01]}  Qd5+ {[%clk 0:00:01]} 45. Kh2 {[%clk 0:00:02]} 1-0


[Site "https://www.chess.com"]

[Event "Titled Tuesday Blitz March 22 Late 2022"]
[White "Hnydiuk, Aleksander"]
[Black "Matlakov, Maxim"]
[WhiteFideId "1109057"]
[BlackFideId "4168003"]
[WhiteElo "2374"]
[BlackElo "2669"]
[Result "0-1"]
[Round "01"]
[TimeControl "180+1"]
[Date "2022.03.22"]
[WhiteClock "0:00:06"]
[BlackClock "0:00:16"]

1. Nf3 {[%clk 0:03:00]}  d5 {[%clk 0:02:57]} 2. d4 {[%clk 0:03:00]}  Nf6 {[%clk 0:02:57]} 3. c4 {[%clk 0:03:00]}  e6 {[%clk 0:02:57]} 4. g3 {[%clk 0:03:00]}  Be7 {[%clk 0:02:51]} 5. Bg2 {[%clk 0:02:58]}  O-O {[%clk 0:02:52]} 6. O-O {[%clk 0:02:59]}  a5 {[%clk 0:02:51]} 7. Qc2 {[%clk 0:02:45]}  Nc6 {[%clk 0:02:49]} 8. Nbd2 {[%clk 0:02:43]}  a4 {[%clk 0:02:49]} 9. Rd1 {[%clk 0:02:36]}  a3 {[%clk 0:02:46]} 10. e4 {[%clk 0:02:19]}  axb2 {[%clk 0:02:14]} 11. Bxb2 {[%clk 0:02:19]}  Ba3 {[%clk 0:02:15]} 12. e5 {[%clk 0:02:09]}  Bxb2 {[%clk 0:02:13]} 13. Qxb2 {[%clk 0:02:07]}  Nd7 {[%clk 0:02:12]} 14. a4 {[%clk 0:01:47]}  Nb6 {[%clk 0:02:11]} 15. c5 {[%clk 0:01:34]}  Nd7 {[%clk 0:02:11]} 16. Nb3 {[%clk 0:01:32]}  Na5 {[%clk 0:01:58]} 17. Nxa5 {[%clk 0:01:30]}  Rxa5 {[%clk 0:01:59]} 18. Nd2 {[%clk 0:01:22]}  c6 {[%clk 0:01:55]} 19. Nb3 {[%clk 0:01:20]}  Ra8 {[%clk 0:01:55]} 20. a5 {[%clk 0:01:15]}  f6 {[%clk 0:01:53]} 21. exf6 {[%clk 0:01:06]}  gxf6 {[%clk 0:01:48]} 22. Bh3 {[%clk 0:01:01]}  Re8 {[%clk 0:01:48]} 23. Re1 {[%clk 0:00:56]}  Nf8 {[%clk 0:01:46]} 24. f4 {[%clk 0:00:51]}  Ng6 {[%clk 0:01:43]} 25. Re3 {[%clk 0:00:49]}  e5 {[%clk 0:01:31]} 26. Bxc8 {[%clk 0:00:48]}  Rxc8 {[%clk 0:01:32]} 27. fxe5 {[%clk 0:00:46]}  fxe5 {[%clk 0:01:33]} 28. dxe5 {[%clk 0:00:45]}  Qg5 {[%clk 0:01:33]} 29. Rae1 {[%clk 0:00:44]}  Rf8 {[%clk 0:01:31]} 30. e6 {[%clk 0:00:42]}  Rce8 {[%clk 0:01:14]} 31. Nd4 {[%clk 0:00:38]}  Nf4 {[%clk 0:01:12]} 32. Kh1 {[%clk 0:00:24]}  Nh3 {[%clk 0:01:09]} 33. R3e2 {[%clk 0:00:22]}  Qg7 {[%clk 0:01:07]} 34. Qd2 {[%clk 0:00:20]}  Ng5 {[%clk 0:01:06]} 35. e7 {[%clk 0:00:18]}  Rf7 {[%clk 0:01:06]} 36. Re5 {[%clk 0:00:15]}  Rf1+ {[%clk 0:00:38]} 37. Rxf1 {[%clk 0:00:14]}  Qxe5 {[%clk 0:00:38]} 38. Qf4 {[%clk 0:00:12]}  Qxe7 {[%clk 0:00:28]} 39. Nf5 {[%clk 0:00:10]}  Qe4+ {[%clk 0:00:27]} 40. Qxe4 {[%clk 0:00:10]}  Nxe4 {[%clk 0:00:28]} 41. Rb1 {[%clk 0:00:08]}  Nxc5 {[%clk 0:00:28]} 42. Nd6 {[%clk 0:00:09]}  Re7 {[%clk 0:00:22]} 43. Rc1 {[%clk 0:00:09]}  Rd7 {[%clk 0:00:19]} 44. Rxc5 {[%clk 0:00:06]}  Rxd6 {[%clk 0:00:20]} 45. Rc3 {[%clk 0:00:07]}  Kf7 {[%clk 0:00:19]} 46. Rb3 {[%clk 0:00:07]}  Rd7 {[%clk 0:00:19]} 47. Kg2 {[%clk 0:00:08]}  Ke6 {[%clk 0:00:19]} 48. Kf3 {[%clk 0:00:08]}  Ke5 {[%clk 0:00:17]} 49. Ke3 {[%clk 0:00:08]}  d4+ {[%clk 0:00:18]} 50. Kd3 {[%clk 0:00:08]}  Kd5 {[%clk 0:00:18]} 51. Rb1 {[%clk 0:00:07]}  c5 {[%clk 0:00:19]} 52. Rb6 {[%clk 0:00:06]}  c4+ {[%clk 0:00:19]} 53. Kd2 {[%clk 0:00:06]}  Rf7 {[%clk 0:00:16]} 0-1


[Site "https://www.chess.com"]

[Event "Titled Tuesday Blitz March 22 Late 2022"]
[White "Iskusnyh, Sergei"]
[Black "Hartikainen, Jarmo"]
[WhiteFideId "4120027"]
[BlackFideId "503134"]
[WhiteElo "2492"]
[BlackElo "2107"]
[Result "1-0"]
[Round "01"]
[TimeControl "180+1"]
[Date "2022.03.22"]
[WhiteClock "0:00:58"]
[BlackClock "0:00:01"]

1. d4 {[%clk 0:02:57]}  Nf6 {[%clk 0:02:58]} 2. c4 {[%clk 0:02:57]}  g6 {[%clk 0:02:57]} 3. g3 {[%clk 0:02:57]}  Bg7 {[%clk 0:02:56]} 4. Bg2 {[%clk 0:02:58]}  O-O {[%clk 0:02:56]} 5. Nc3 {[%clk 0:02:58]}  d6 {[%clk 0:02:50]} 6. Nf3 {[%clk 0:02:59]}  Nc6 {[%clk 0:02:48]} 7. O-O {[%clk 0:02:59]}  e5 {[%clk 0:02:35]} 8. dxe5 {[%clk 0:02:54]}  Nxe5 {[%clk 0:02:24]} 9. b3 {[%clk 0:02:50]}  Nfg4 {[%clk 0:02:13]} 10. Bb2 {[%clk 0:02:40]}  Nxf3+ {[%clk 0:02:08]} 11. exf3 {[%clk 0:02:39]}  Ne5 {[%clk 0:02:08]} 12. f4 {[%clk 0:02:38]}  Nc6 {[%clk 0:01:52]} 13. Qd2 {[%clk 0:02:36]}  Bf5 {[%clk 0:01:24]} 14. Rfe1 {[%clk 0:02:31]}  Qc8 {[%clk 0:01:19]} 15. Nd5 {[%clk 0:02:28]}  Qd7 {[%clk 0:00:56]} 16. Re3 {[%clk 0:02:10]}  Rae8 {[%clk 0:00:54]} 17. Rae1 {[%clk 0:02:09]}  Rxe3 {[%clk 0:00:38]} 18. Rxe3 {[%clk 0:02:08]}  Re8 {[%clk 0:00:28]} 19. Bxg7 {[%clk 0:02:06]}  Rxe3 {[%clk 0:00:22]} 20. Nf6+ {[%clk 0:02:02]}  Kxg7 {[%clk 0:00:21]} 21. Nxd7 {[%clk 0:02:02]}  Rd3 {[%clk 0:00:21]} 22. Qb2+ {[%clk 0:01:55]}  Kh6 {[%clk 0:00:17]} 23. Qe2 {[%clk 0:01:46]}  Nd4 {[%clk 0:00:16]} 24. Qe1 {[%clk 0:01:12]}  Bxd7 {[%clk 0:00:12]} 25. h3 {[%clk 0:01:06]}  Bc6 {[%clk 0:00:05]} 26. Bxc6 {[%clk 0:01:03]}  bxc6 {[%clk 0:00:05]} 27. Qe7 {[%clk 0:01:02]}  Kg7 {[%clk 0:00:03]} 28. Qxc7 {[%clk 0:01:00]}  Rd1+ {[%clk 0:00:02]} 29. Kg2 {[%clk 0:01:00]}  d5 {[%clk 0:00:02]} 30. Qxa7 {[%clk 0:00:58]}  dxc4 {[%clk 0:00:01]} 31. bxc4 {[%clk 0:00:58]} 1-0


[Site "https://www.chess.com"]

[Event "Titled Tuesday Blitz March 22 Late 2022"]
[White "Jaskolka, Tomasz"]
[Black "Matinian, Nikita"]
[WhiteFideId "1170791"]
[BlackFideId "24129100"]
[WhiteElo "2073"]
[BlackElo "2422"]
[Result "0-1"]
[Round "01"]
[TimeControl "180+1"]
[Date "2022.03.22"]
[WhiteClock "0:00:09"]
[BlackClock "0:00:10"]

1. d4 {[%clk 0:02:54]}  Nf6 {[%clk 0:02:59]} 2. Bf4 {[%clk 0:02:54]}  e6 {[%clk 0:02:59]} 3. e3 {[%clk 0:02:54]}  c5 {[%clk 0:02:58]} 4. Nf3 {[%clk 0:02:53]}  b6 {[%clk 0:02:59]} 5. Nbd2 {[%clk 0:02:54]}  Bb7 {[%clk 0:02:59]} 6. Nc4 {[%clk 0:02:54]}  d5 {[%clk 0:02:58]} 7. Nce5 {[%clk 0:02:55]}  Nbd7 {[%clk 0:02:57]} 8. Bb5 {[%clk 0:02:46]}  a6 {[%clk 0:02:57]} 9. Ng5 {[%clk 0:02:46]}  axb5 {[%clk 0:02:51]} 10. Nexf7 {[%clk 0:02:46]}  Qe7 {[%clk 0:02:50]} 11. Nxh8 {[%clk 0:02:35]}  e5 {[%clk 0:02:44]} 12. dxe5 {[%clk 0:02:11]}  Nxe5 {[%clk 0:02:45]} 13. Bxe5 {[%clk 0:02:11]}  Qxe5 {[%clk 0:02:45]} 14. f4 {[%clk 0:01:46]}  Qxb2 {[%clk 0:02:45]} 15. O-O {[%clk 0:01:40]}  b4 {[%clk 0:02:22]} 16. Nxh7 {[%clk 0:01:35]}  O-O-O {[%clk 0:02:13]} 17. Nxf8 {[%clk 0:01:24]}  Rxf8 {[%clk 0:02:11]} 18. Ng6 {[%clk 0:01:24]}  Re8 {[%clk 0:02:12]} 19. Ne5 {[%clk 0:01:23]}  Kc7 {[%clk 0:01:51]} 20. Qd3 {[%clk 0:01:06]}  Re7 {[%clk 0:01:47]} 21. Rfb1 {[%clk 0:00:59]}  Qc3 {[%clk 0:01:47]} 22. Qxc3 {[%clk 0:00:59]}  bxc3 {[%clk 0:01:48]} 23. Rf1 {[%clk 0:01:00]}  Ne4 {[%clk 0:01:47]} 24. g4 {[%clk 0:00:57]}  g5 {[%clk 0:01:41]} 25. Rad1 {[%clk 0:00:54]}  gxf4 {[%clk 0:01:40]} 26. exf4 {[%clk 0:00:55]}  d4 {[%clk 0:01:40]} 27. g5 {[%clk 0:00:54]}  Nxg5 {[%clk 0:01:38]} 28. fxg5 {[%clk 0:00:49]}  Rxe5 {[%clk 0:01:38]} 29. h4 {[%clk 0:00:49]}  Re4 {[%clk 0:01:38]} 30. Rf7+ {[%clk 0:00:47]}  Kb8 {[%clk 0:01:38]} 31. Rh7 {[%clk 0:00:46]}  Rg4+ {[%clk 0:01:32]} 32. Kf1 {[%clk 0:00:41]}  Rf4+ {[%clk 0:01:33]} 33. Ke1 {[%clk 0:00:39]}  Ba6 {[%clk 0:01:31]} 34. Rd3 {[%clk 0:00:30]}  Bxd3 {[%clk 0:01:31]} 35. cxd3 {[%clk 0:00:31]}  Rf1+ {[%clk 0:01:29]} 36. Kxf1 {[%clk 0:00:29]}  c2 {[%clk 0:01:30]} 37. g6 {[%clk 0:00:25]}  c1=Q+ {[%clk 0:01:30]} 38. Kg2 {[%clk 0:00:26]}  Qd2+ {[%clk 0:01:30]} 39. Kg1 {[%clk 0:00:26]}  Qxd3 {[%clk 0:01:29]} 40. h5 {[%clk 0:00:25]}  Qg3+ {[%clk 0:01:27]} 41. Kf1 {[%clk 0:00:26]}  Qf3+ {[%clk 0:01:26]} 42. Ke1 {[%clk 0:00:25]}  d3 {[%clk 0:01:26]} 43. Re7 {[%clk 0:00:25]}  Qh1+ {[%clk 0:01:22]} 44. Kd2 {[%clk 0:00:25]}  Qxh5 {[%clk 0:01:23]} 45. g7 {[%clk 0:00:24]}  Qg6 {[%clk 0:01:11]} 46. Rd7 {[%clk 0:00:20]}  Qe8 {[%clk 0:01:00]} 47. Re7 {[%clk 0:00:16]}  Qg8 {[%clk 0:00:57]} 48. Kxd3 {[%clk 0:00:14]}  b5 {[%clk 0:00:51]} 49. Kc2 {[%clk 0:00:13]}  Qxa2+ {[%clk 0:00:51]} 50. Kc3 {[%clk 0:00:14]}  Qg8 {[%clk 0:00:52]} 51. Kb2 {[%clk 0:00:14]}  b4 {[%clk 0:00:51]} 52. Kc2 {[%clk 0:00:12]}  c4 {[%clk 0:00:49]} 53. Kb2 {[%clk 0:00:12]}  c3+ {[%clk 0:00:49]} 54. Kc2 {[%clk 0:00:13]}  Ka8 {[%clk 0:00:46]} 55. Rd7 {[%clk 0:00:09]}  Qe8 {[%clk 0:00:36]} 56. Re7 {[%clk 0:00:08]}  Qd8 {[%clk 0:00:20]} 57. Rd7 {[%clk 0:00:06]}  Qg8 {[%clk 0:00:17]} 58. Re7 {[%clk 0:00:06]}  Qh7+ {[%clk 0:00:17]} 59. Kb3 {[%clk 0:00:06]}  c2 {[%clk 0:00:13]} 60. Re8+ {[%clk 0:00:06]}  Kb7 {[%clk 0:00:13]} 61. Re7+ {[%clk 0:00:07]}  Kb6 {[%clk 0:00:13]} 62. Re6+ {[%clk 0:00:07]}  Kc5 {[%clk 0:00:13]} 63. Re1 {[%clk 0:00:07]}  Qxg7 {[%clk 0:00:11]} 64. Kxc2 {[%clk 0:00:08]}  Qc3+ {[%clk 0:00:11]} 65. Kd1 {[%clk 0:00:08]}  b3 {[%clk 0:00:11]} 66. Re2 {[%clk 0:00:08]}  b2 {[%clk 0:00:11]} 67. Rc2 {[%clk 0:00:09]}  b1=Q+ {[%clk 0:00:11]} 68. Rc1 {[%clk 0:00:09]}  Qd3# {[%clk 0:00:10]} 0-1


[Site "https://www.chess.com"]

[Event "Titled Tuesday Blitz March 22 Late 2022"]
[White "Johnson, Donald"]
[Black "Bluebaum, Matthias"]
[WhiteFideId "30949122"]
[BlackFideId "24651516"]
[WhiteElo "1724"]
[BlackElo "2550"]
[Result "0-1"]
[Round "01"]
[TimeControl "180+1"]
[Date "2022.03.22"]
[WhiteClock "0:00:14"]
[BlackClock "0:02:34"]

1. e4 {[%clk 0:03:00]}  c6 {[%clk 0:02:58]} 2. d4 {[%clk 0:03:00]}  d5 {[%clk 0:02:58]} 3. e5 {[%clk 0:03:01]}  Bf5 {[%clk 0:02:58]} 4. Nf3 {[%clk 0:03:02]}  e6 {[%clk 0:02:58]} 5. Be2 {[%clk 0:03:02]}  c5 {[%clk 0:02:59]} 6. c3 {[%clk 0:02:55]}  Nc6 {[%clk 0:02:59]} 7. O-O {[%clk 0:02:56]}  Bg6 {[%clk 0:02:59]} 8. Be3 {[%clk 0:02:47]}  cxd4 {[%clk 0:02:53]} 9. cxd4 {[%clk 0:02:47]}  Nge7 {[%clk 0:02:54]} 10. Nc3 {[%clk 0:02:46]}  Nf5 {[%clk 0:02:54]} 11. Qd2 {[%clk 0:02:26]}  Be7 {[%clk 0:02:53]} 12. Rfd1 {[%clk 0:01:55]}  O-O {[%clk 0:02:53]} 13. Bg5 {[%clk 0:01:51]}  Nfxd4 {[%clk 0:02:44]} 14. Nxd4 {[%clk 0:01:31]}  Bxg5 {[%clk 0:02:44]} 15. f4 {[%clk 0:01:30]}  Be7 {[%clk 0:02:42]} 16. Kh1 {[%clk 0:01:09]}  Nxd4 {[%clk 0:02:41]} 17. Qxd4 {[%clk 0:01:10]}  Qb6 {[%clk 0:02:39]} 18. Qxb6 {[%clk 0:01:08]}  axb6 {[%clk 0:02:40]} 19. Nb5 {[%clk 0:01:04]}  Rfc8 {[%clk 0:02:40]} 20. Nd4 {[%clk 0:01:00]}  Be4 {[%clk 0:02:38]} 21. a3 {[%clk 0:00:55]}  g6 {[%clk 0:02:37]} 22. Rac1 {[%clk 0:00:48]}  Bc5 {[%clk 0:02:35]} 23. Nb3 {[%clk 0:00:32]}  Be3 {[%clk 0:02:36]} 24. Rxc8+ {[%clk 0:00:30]}  Rxc8 {[%clk 0:02:36]} 25. Bd3 {[%clk 0:00:27]}  Bxd3 {[%clk 0:02:35]} 26. Rxd3 {[%clk 0:00:28]}  Bxf4 {[%clk 0:02:35]} 27. g3 {[%clk 0:00:24]}  Bxe5 {[%clk 0:02:36]} 28. Nd4 {[%clk 0:00:24]}  Bxd4 {[%clk 0:02:34]} 29. Rxd4 {[%clk 0:00:24]}  Kf8 {[%clk 0:02:34]} 30. Rb4 {[%clk 0:00:23]}  Rc6 {[%clk 0:02:34]} 31. Kg2 {[%clk 0:00:24]}  Ke7 {[%clk 0:02:35]} 32. a4 {[%clk 0:00:24]}  e5 {[%clk 0:02:35]} 33. Rh4 {[%clk 0:00:24]}  h5 {[%clk 0:02:35]} 34. b4 {[%clk 0:00:20]}  f5 {[%clk 0:02:34]} 35. b5 {[%clk 0:00:19]}  Rc4 {[%clk 0:02:34]} 36. g4 {[%clk 0:00:17]}  Rxg4+ {[%clk 0:02:33]} 37. Rxg4 {[%clk 0:00:14]}  hxg4 {[%clk 0:02:34]} 0-1


[Site "https://www.chess.com"]